fUST/lending_fUST_20240422
["ID","MTS","AMOUNT","RATE_DAILY","PERIOD"]
[323170873,1713767458820,-500.0,0.00022739,2]
[323170874,1713767458830,-500.0,0.00022739,2]
[323170875,1713767458839,-500.0,0.00022739,2]
[323170876,1713767458848,-500.0,0.00022739,2]
[323170877,1713767458858,-579.37,0.00022739,2]
[323170878,1713767458866,-815.76,0.00022739,2]
[323170879,1713767458876,-1663.93,0.00022739,2]
[323170880,1713767458885,-3021.16,0.00022739,2]
[323170881,1713767458894,-3637.22,0.00022739,2]
[323170882,1713767458904,-2392.42,0.00022739,2]
[323170883,1713767458913,-674.03,0.00022739,2]
[323170884,1713767458922,-868.43,0.00022739,2]
[323170885,1713767458931,-500.0,0.00022739,2]
[323170886,1713767458940,-500.0,0.00022739,2]
[323170887,1713767458950,-500.0,0.00022739,2]
[323170888,1713767458959,-500.0,0.00022739,2]
[323170889,1713767458968,-9522.5,0.00022739,2]
[323170890,1713767458978,-2759.83,0.00022739,2]
[323170891,1713767458987,-500.0,0.00022739,2]
[323170892,1713767458996,-227.92711408,0.00022739,2]
[323170893,1713767459006,-500.0,0.00022739,2]
[323170894,1713767459015,-500.0,0.00022739,2]
[323170895,1713767459025,-500.0,0.00022739,2]
[323170896,1713767459035,-829.76,0.00022739,2]
[323170897,1713767459044,-6890.08,0.00022739,2]
[323170898,1713767459053,-500.0,0.00022739,2]
[323170899,1713767459063,-500.0,0.00022739,2]
[323170900,1713767459072,-500.0,0.00022739,2]
[323170901,1713767459081,-2612.49,0.00022739,2]
[323170902,1713767459092,-500.0,0.00022739,2]
[323170903,1713767459101,-597.14,0.00022739,2]
[323170904,1713767459111,-500.0,0.00022739,2]
[323170905,1713767459120,-500.0,0.00022739,2]
[323170906,1713767459130,-500.0,0.00022739,2]
[323170907,1713767459139,-816.05,0.00022739,2]
[323170908,1713767459148,-500.0,0.00022739,2]
[323170909,1713767459157,-500.0,0.00022739,2]
[323170910,1713767459166,-1249.87,0.00022739,2]
[323170911,1713767459175,-2466.98,0.00022739,2]
[323170912,1713767459185,-500.0,0.00022739,2]
[323170913,1713767459193,-500.0,0.00022739,2]
[323170914,1713767459203,-1056.69,0.00022739,2]
[323170915,1713767459212,-1951.92,0.00022739,2]
[323170916,1713767459222,-500.0,0.00022739,2]
[323170917,1713767459231,-1929.19,0.00022739,2]
[323170918,1713767459240,-1379.2,0.00022739,2]
[323170919,1713767459250,-1263.06,0.00022739,2]
[323170920,1713767459260,-558.21,0.00022739,2]
[323170921,1713767459269,-500.0,0.00022739,2]
[323170922,1713767459282,-1746.95,0.00022739,2]
[323170923,1713767459291,-1482.89,0.00022739,2]
[323170924,1713767459301,-1091.08,0.00022739,2]
[323170925,1713767459310,-500.0,0.00022739,2]
[323170926,1713767459320,-500.0,0.00022739,2]
[323170927,1713767459330,-500.0,0.00022739,2]
[323170928,1713767459340,-619.66,0.00022739,2]
[323170929,1713767459351,-1300.13,0.00022739,2]
[323170930,1713767459361,-500.0,0.00022739,2]
[323170931,1713767459371,-500.0,0.00022739,2]
[323170932,1713767459380,-846.8,0.00022739,2]
[323170933,1713767459389,-1180.91,0.00022739,2]
[323170934,1713767459398,-2123.23,0.00022739,2]
[323170935,1713767459408,-500.0,0.00022739,2]
[323170936,1713767459417,-869.91,0.00022739,2]
[323170937,1713767459426,-500.0,0.00022739,2]
[323170938,1713767459435,-500.0,0.00022739,2]
[323170939,1713767459444,-9481.21,0.00022739,2]
[323170940,1713767459453,-635.60968491,0.00022739,2]
[323170941,1713767459463,-500.0,0.00022739,2]
[323170942,1713767459472,-630.26,0.00022739,2]
[323170943,1713767459481,-500.0,0.00022739,2]
[323170944,1713767459490,-752.04,0.00022739,2]
[323170945,1713767459499,-1452.83,0.00022739,2]
[323170946,1713767459509,-500.0,0.00022739,2]
[323170947,1713767459519,-14628.82,0.00022739,2]
[323170948,1713767459529,-10102.93,0.00022739,2]
[323170949,1713767459538,-1364.64,0.00022739,2]
[323170950,1713767459547,-500.0,0.00022739,2]
[323170951,1713767459557,-908.62,0.00022739,2]
[323170952,1713767459566,-761.11,0.00022739,2]
[323170953,1713767459575,-1011.45,0.00022739,2]
[323170954,1713767459585,-12641.9,0.00022739,2]
[323170955,1713767459595,-500.0,0.00022739,2]
[323170956,1713767459605,-1176.04,0.00022739,2]
[323170957,1713767459614,-500.0,0.00022739,2]
[323170958,1713767459624,-500.0,0.00022739,2]
[323170959,1713767459634,-500.0,0.00022739,2]
[323170960,1713767459643,-1769.8,0.00022739,2]
[323170961,1713767459652,-500.0,0.00022739,2]
[323170962,1713767459662,-500.0,0.00022739,2]
[323170963,1713767459671,-1018.41,0.00022739,2]
[323170964,1713767459680,-500.0,0.00022739,2]
[323170965,1713767459765,-500.0,0.00022739,2]
[323170966,1713767459783,-2331.25,0.00022739,2]
[323170967,1713767459792,-500.0,0.00022739,2]
[323170968,1713767459802,-500.0,0.00022739,2]
[323170969,1713767459811,-328.24798801,0.00022739,2]
[323170970,1713767459820,-500.0,0.00022739,2]
[323170971,1713767459830,-500.0,0.00022739,2]
[323170972,1713767459840,-500.0,0.00022739,2]
[323170973,1713767459849,-500.0,0.00022739,2]
[323170974,1713767459858,-500.0,0.00022739,2]
[323170975,1713767459867,-500.0,0.00022739,2]
[323170976,1713767459876,-1902.14,0.00022739,2]
[323170977,1713767459886,-6427.79,0.00022739,2]
[323170978,1713767459895,-679.45,0.00022739,2]
[323170979,1713767459905,-500.0,0.00022739,2]
[323170980,1713767459914,-423.47435075,0.00022739,2]
[323170981,1713767459923,-914.84,0.00022739,2]
[323170982,1713767459932,-154.98030169,0.00022793,2]
[323170983,1713767459941,-205.12969013,0.00022793,2]
[323170984,1713767459951,-437.78790977,0.00022797,2]
[323170985,1713767459960,-273.55283899,0.00022797,2]
[323170986,1713767459969,-185.80866985,0.00022797,2]
[323170987,1713767459978,-155.66667766,0.00022797,2]
[323170988,1713767459987,-223.08244015,0.00022797,2]
[323170989,1713767459996,-202.0,0.000229,2]
[323170990,1713767460006,-1000.0,0.00023,2]
[323170991,1713767460015,-500.0,0.00023013,2]
[323170992,1713767460024,-500.0,0.00023013,2]
[323170993,1713767460033,-707.57,0.00023013,2]
[323170994,1713767460043,-524.37,0.00023013,2]
[323170995,1713767460052,-500.0,0.00023013,2]
[323170996,1713767460062,-500.0,0.00023013,2]
[323170997,1713767460072,-1036.09,0.00023013,2]
[323170998,1713767460082,-513.54,0.00023013,2]
[323170999,1713767460092,-500.0,0.00023013,2]
[323171000,1713767460102,-500.0,0.00023013,2]
[323171001,1713767460111,-704.84,0.00023013,2]
[323171002,1713767460120,-580.93,0.00023013,2]
[323171003,1713767460129,-520.03615163,0.00023013,2]
[323171004,1713767460139,-489.03444578,0.00023013,2]
[323171005,1713767460148,-500.0,0.00023013,2]
[323171006,1713767460158,-500.0,0.00023013,2]
[323171007,1713767460168,-500.0,0.00023013,2]
[323171008,1713767460177,-500.0,0.00023013,2]
[323171009,1713767460186,-752.43,0.00023013,2]
[323171010,1713767460196,-500.0,0.00023013,2]
[323171011,1713767460205,-500.0,0.00023013,2]
[323171012,1713767460214,-633.67,0.00023013,2]
[323171013,1713767460224,-1247.66,0.00023013,2]
[323171014,1713767460233,-500.0,0.00023013,2]
[323171015,1713767460242,-2504.91,0.00023013,2]
[323171016,1713767460252,-987.33,0.00023013,2]
[323171017,1713767460263,-627.3,0.00023013,2]
[323171018,1713767460277,-494.13698279,0.00023013,2]
[323171019,1713767460290,-500.0,0.00023013,2]
[323171020,1713767460299,-500.0,0.00023013,2]
[323171021,1713767460309,-500.0,0.00023013,2]
[323171022,1713767460319,-2866.49,0.00023013,2]
[323171023,1713767460328,-500.0,0.00023013,2]
[323171024,1713767460338,-500.0,0.00023013,2]
[323171025,1713767460348,-500.0,0.00023013,2]
[323171026,1713767460357,-500.0,0.00023013,2]
[323171027,1713767460367,-503.92402627,0.00023013,2]
[323171028,1713767460376,-500.0,0.00023013,2]
[323171029,1713767460385,-500.0,0.00023013,2]
[323171030,1713767460394,-565.92825141,0.00023013,2]
[323171031,1713767460403,-500.0,0.00023013,2]
[323171032,1713767460412,-500.0,0.00023013,2]
[323171033,1713767460421,-500.0,0.00023013,2]
[323171034,1713767460431,-899.34,0.00023013,2]
[323171035,1713767460440,-539.13972995,0.00023013,2]
[323171036,1713767460450,-500.0,0.00023013,2]
[323171037,1713767460459,-500.0,0.00023013,2]
[323171038,1713767460468,-500.0,0.00023013,2]
[323171039,1713767460478,-791.63,0.00023013,2]
[323171040,1713767460487,-500.0,0.00023013,2]
[323171041,1713767460496,-500.0,0.00023013,2]
[323171042,1713767460505,-1249.13,0.00023013,2]
[323171043,1713767460515,-843.39,0.00023013,2]
[323171044,1713767460524,-683.88,0.00023013,2]
[323171045,1713767460533,-500.0,0.00023013,2]
[323171046,1713767460542,-500.0,0.00023013,2]
[323171047,1713767460552,-500.0,0.00023013,2]
[323171048,1713767460561,-715.34,0.00023013,2]
[323171049,1713767460570,-500.0,0.00023013,2]
[323171050,1713767460579,-567.03,0.00023013,2]
[323171051,1713767460588,-500.0,0.00023013,2]
[323171052,1713767460599,-624.83,0.00023013,2]
[323171053,1713767460608,-682.75,0.00023013,2]
[323171054,1713767460617,-500.0,0.00023013,2]
[323171055,1713767460627,-500.0,0.00023013,2]
[323171056,1713767460636,-500.0,0.00023013,2]
[323171057,1713767460645,-500.0,0.00023013,2]
[323171058,1713767460654,-1000.49,0.00023013,2]
[323171059,1713767460663,-1684.08,0.00023013,2]
[323171060,1713767460672,-2209.51,0.00023013,2]
[323171061,1713767460682,-195.08847318,0.00023013,2]
[323171062,1713767460691,-1205.97,0.00023013,2]
[323171063,1713767460701,-500.0,0.00023013,2]
[323171064,1713767460710,-635.88,0.00023013,2]
[323171065,1713767460720,-1141.04,0.00023013,2]
[323171066,1713767460729,-500.0,0.00023013,2]
[323171067,1713767460739,-500.0,0.00023013,2]
[323171068,1713767460749,-2672.74,0.00023013,2]
[323171069,1713767460759,-635.55,0.00023013,2]
[323171070,1713767460768,-500.0,0.00023013,2]
[323171071,1713767460777,-500.0,0.00023013,2]
[323171072,1713767460787,-500.0,0.00023013,2]
[323171073,1713767460796,-621.93,0.00023013,2]
[323171074,1713767460806,-504.87,0.00023013,2]
[323171075,1713767460815,-6486.86,0.00023013,2]
[323171076,1713767460824,-500.0,0.00023013,2]
[323171077,1713767460833,-500.0,0.00023013,2]
[323171078,1713767460844,-1932.71,0.00023013,2]
[323171079,1713767460853,-515.1,0.00023013,2]
[323171080,1713767460863,-1676.97,0.00023013,2]
[323171081,1713767460873,-533.15,0.00023013,2]
[323171082,1713767460882,-500.0,0.00023013,2]
[323171083,1713767460892,-5045.78,0.00023013,2]
[323171084,1713767460901,-500.0,0.00023013,2]
[323171085,1713767460910,-1992.6,0.00023013,2]
[323171086,1713767460919,-500.0,0.00023013,2]
[323171087,1713767460929,-500.0,0.00023013,2]
[323171088,1713767460938,-500.0,0.00023013,2]
[323171089,1713767460947,-397.41416398,0.00023013,2]
[323171090,1713767460957,-500.0,0.00023013,2]
[323171091,1713767460966,-869.82,0.00023013,2]
[323171092,1713767460975,-2136.64,0.00023013,2]
[323171093,1713767460984,-1500.47,0.00023013,2]
[323171094,1713767460993,-518.2,0.00023013,2]
[323171095,1713767461003,-500.0,0.00023013,2]
[323171096,1713767461012,-524.5337707,0.00023013,2]
[323171097,1713767461021,-968.92,0.00023013,2]
[323171098,1713767461030,-746.37,0.00023013,2]
[323171099,1713767461040,-500.0,0.00023013,2]
[323171100,1713767461128,-1007.63,0.00023013,2]
[323171101,1713767461137,-1463.62,0.00023013,2]
[323171102,1713767461147,-500.0,0.00023013,2]
[323171103,1713767461156,-500.0,0.00023013,2]
[323171104,1713767461165,-500.0,0.00023013,2]
[323171105,1713767461174,-3135.6,0.00023013,2]
[323171106,1713767461183,-317.28151444,0.00023013,2]
[323171107,1713767461192,-1108.26,0.00023013,2]
[323171108,1713767461201,-500.0,0.00023013,2]
[323171109,1713767461211,-500.0,0.00023013,2]
[323171110,1713767461220,-500.0,0.00023013,2]
[323171111,1713767461229,-500.0,0.00023013,2]
[323171112,1713767461238,-589.34,0.00023013,2]
[323171113,1713767461247,-353.22339509,0.00023013,2]
[323171114,1713767461256,-698.37,0.00023013,2]
[323171115,1713767461266,-752.81,0.00023013,2]
[323171116,1713767461278,-500.0,0.00023013,2]
[323171117,1713767461287,-638.4,0.00023013,2]
[323171118,1713767461296,-500.0,0.00023013,2]
[323171119,1713767461305,-1136.03,0.00023013,2]
[323171120,1713767461314,-500.0,0.00023013,2]
[323171121,1713767461324,-361.08025354,0.00023013,2]
[323171122,1713767461333,-1768.62,0.00023013,2]
[323171123,1713767461343,-500.0,0.00023013,2]
[323171124,1713767461354,-632.5,0.00023013,2]
[323171125,1713767461363,-500.0,0.00023013,2]
[323171126,1713767461372,-500.0,0.00023013,2]
[323171127,1713767461382,-692.59,0.00023013,2]
[323171128,1713767461391,-500.0,0.00023013,2]
[323171129,1713767461401,-500.0,0.00023013,2]
[323171130,1713767461410,-830.9,0.00023013,2]
[323171131,1713767461419,-500.0,0.00023013,2]
[323171132,1713767461429,-500.0,0.00023013,2]
[323171133,1713767461438,-1957.73,0.00023013,2]
[323171134,1713767461447,-500.0,0.00023013,2]
[323171135,1713767461457,-2206.14,0.00023013,2]
[323171136,1713767461466,-632.8,0.00023013,2]
[323171137,1713767461475,-500.0,0.00023013,2]
[323171138,1713767461485,-567.92,0.00023013,2]
[323171139,1713767461495,-320.3555678,0.00023013,2]
[323171140,1713767461504,-500.0,0.00023013,2]
[323171141,1713767461513,-1137.99,0.00023013,2]
[323171142,1713767461523,-637.22,0.00023013,2]
[323171143,1713767461532,-763.56,0.00023013,2]
[323171144,1713767461542,-500.0,0.00023013,2]
[323171145,1713767461551,-812.55,0.00023013,2]
[323171146,1713767461560,-767.23,0.00023013,2]
[323171147,1713767461570,-1194.74,0.00023013,2]
[323171148,1713767461579,-500.0,0.00023013,2]
[323171149,1713767461589,-500.0,0.00023013,2]
[323171150,1713767461601,-327.38029764,0.00023013,2]
[323171151,1713767461610,-850.36,0.00023013,2]
[323171152,1713767461619,-500.0,0.00023013,2]
[323171153,1713767461628,-500.0,0.00023013,2]
[323171154,1713767461637,-500.0,0.00023013,2]
[323171155,1713767461647,-500.0,0.00023013,2]
[323171156,1713767461656,-535.87,0.00023013,2]
[323171157,1713767461665,-173.22343088,0.00023013,2]
[323171158,1713767461674,-500.0,0.00023013,2]
[323171159,1713767461684,-500.0,0.00023013,2]
[323171160,1713767461693,-862.67,0.00023013,2]
[323171161,1713767461703,-1258.19,0.00023013,2]
[323171162,1713767461721,-500.0,0.00023013,2]
[323171163,1713767461738,-500.0,0.00023013,2]
[323171164,1713767461757,-3010.59,0.00023013,2]
[323171165,1713767461776,-500.0,0.00023013,2]
[323171166,1713767461791,-500.0,0.00023013,2]
[323171167,1713767461808,-500.0,0.00023013,2]
[323171168,1713767461825,-818.47,0.00023013,2]
[323171169,1713767461838,-1416.08,0.00023013,2]
[323171170,1713767461859,-500.0,0.00023013,2]
[323171171,1713767461875,-500.0,0.00023013,2]
[323171172,1713767461893,-532.12,0.00023013,2]
[323171173,1713767461912,-3829.87,0.00023013,2]
[323171174,1713767461928,-1193.59,0.00023013,2]
[323171175,1713767461940,-500.0,0.00023013,2]
[323171176,1713767461956,-2541.86,0.00023013,2]
[323171177,1713767461972,-500.0,0.00023013,2]
[323171178,1713767461987,-880.11,0.00023013,2]
[323171179,1713767462001,-1422.5,0.00023013,2]
[323171180,1713767462016,-500.0,0.00023013,2]
[323171181,1713767462030,-500.0,0.00023013,2]
[323171182,1713767462044,-500.0,0.00023013,2]
[323171183,1713767462059,-500.0,0.00023013,2]
[323171184,1713767462074,-579.37,0.00023013,2]
[323171185,1713767462087,-815.76,0.00023013,2]
[323171186,1713767462102,-1663.93,0.00023013,2]
[323171187,1713767462115,-3021.16,0.00023013,2]
[323171188,1713767462130,-3637.22,0.00023013,2]
[323171189,1713767462144,-2392.42,0.00023013,2]
[323171190,1713767462158,-674.03,0.00023013,2]
[323171191,1713767462172,-868.43,0.00023013,2]
[323171192,1713767462186,-500.0,0.00023013,2]
[323171193,1713767462199,-500.0,0.00023013,2]
[323171194,1713767462213,-569.33525844,0.00023013,2]
[323171195,1713767462227,-500.0,0.00023013,2]
[323171196,1713767462242,-9522.5,0.00023013,2]
[323171197,1713767462258,-2759.83,0.00023013,2]
[323171198,1713767462273,-500.0,0.00023013,2]
[323171199,1713767462290,-500.0,0.00023013,2]
[323171200,1713767462304,-500.0,0.00023013,2]
[323171201,1713767462319,-500.0,0.00023013,2]
[323171202,1713767462332,-829.76,0.00023013,2]
[323171203,1713767462348,-6890.08,0.00023013,2]
[323171204,1713767462362,-500.0,0.00023013,2]
[323171205,1713767462375,-500.0,0.00023013,2]
[323171206,1713767462390,-500.0,0.00023013,2]
[323171207,1713767462405,-2612.49,0.00023013,2]
[323171208,1713767462418,-500.0,0.00023013,2]
[323171209,1713767462434,-597.14,0.00023013,2]
[323171210,1713767462450,-500.0,0.00023013,2]
[323171211,1713767462465,-500.0,0.00023013,2]
[323171212,1713767462480,-500.0,0.00023013,2]
[323171213,1713767462493,-816.05,0.00023013,2]
[323171214,1713767462508,-296.66006387,0.00023013,2]
[323171215,1713767462523,-500.0,0.00023013,2]
[323171216,1713767462538,-1249.87,0.00023013,2]
[323171217,1713767462552,-2466.98,0.00023013,2]
[323171218,1713767462567,-500.0,0.00023013,2]
[323171219,1713767462581,-500.0,0.00023013,2]
[323171220,1713767462594,-1056.69,0.00023013,2]
[323171221,1713767462608,-1951.92,0.00023013,2]
[323171222,1713767462621,-500.0,0.00023013,2]
[323171223,1713767462631,-1929.19,0.00023013,2]
[323171224,1713767462776,-1379.2,0.00023013,2]
[323171225,1713767462788,-1263.06,0.00023013,2]
[323171226,1713767462798,-558.21,0.00023013,2]
[323171227,1713767462807,-500.0,0.00023013,2]
[323171228,1713767462816,-1746.95,0.00023013,2]
[323171229,1713767462826,-1482.89,0.00023013,2]
[323171230,1713767462835,-1091.08,0.00023013,2]
[323171231,1713767462847,-578.50181168,0.00023013,2]
[323171232,1713767462857,-500.0,0.00023013,2]
[323171233,1713767462866,-500.0,0.00023013,2]
[323171234,1713767462875,-619.66,0.00023013,2]
[323171235,1713767462884,-1300.13,0.00023013,2]
[323171236,1713767462893,-500.0,0.00023013,2]
[323171237,1713767462903,-500.0,0.00023013,2]
[323171238,1713767462912,-846.8,0.00023013,2]
[323171239,1713767462921,-1180.91,0.00023013,2]
[323171240,1713767462931,-2123.23,0.00023013,2]
[323171241,1713767462940,-500.0,0.00023013,2]
[323171242,1713767462949,-869.91,0.00023013,2]
[323171243,1713767462958,-500.0,0.00023013,2]
[323171244,1713767462967,-500.0,0.00023013,2]
[323171245,1713767462977,-9481.21,0.00023013,2]
[323171246,1713767462986,-500.0,0.00023013,2]
[323171247,1713767462995,-630.26,0.00023013,2]
[323171248,1713767463004,-500.0,0.00023013,2]
[323171249,1713767463013,-752.04,0.00023013,2]
[323171250,1713767463023,-1452.83,0.00023013,2]
[323171251,1713767463032,-500.0,0.00023013,2]
[323171252,1713767463041,-14628.82,0.00023013,2]
[323171253,1713767463050,-10102.93,0.00023013,2]
[323171254,1713767463059,-500.0,0.00023013,2]
[323171255,1713767463069,-1364.64,0.00023013,2]
[323171256,1713767463078,-761.11,0.00023013,2]
[323171257,1713767463088,-908.62,0.00023013,2]
[323171258,1713767463100,-910.76755633,0.00023013,2]
[323171273,1713767532519,62877.08569974,0.0002,2]
[323171302,1713767879528,151.0,0.0001999,2]
[323171310,1713768184747,176.865631,0.00020064,2]
[323171315,1713768216867,3130.60253076,0.00019975,2]
[323171317,1713768225587,3130.60253076,0.00019975,2]
[323171318,1713768234036,3130.60253076,0.00019975,2]
[323171320,1713768242605,549.48258406,0.00019974,2]
[323171321,1713768251063,549.48258406,0.00019974,2]
[323171322,1713768259035,3130.60253076,0.00019973,2]
[323171325,1713768267306,364.8548493,0.00019972,2]
[323171326,1713768275327,364.8548493,0.00019972,2]
[323171330,1713768283627,364.8548493,0.00019972,2]
[323171331,1713768292137,307.49432112,0.00019972,2]
[323171471,1713768637971,-360.23000001,0.0002016,2]
[323171496,1713768642297,-4.62484929,0.0002016,2]
[323171498,1713768642306,-252.37315065,0.00020161,2]
[323171524,1713768643370,-297.10943341,0.00020161,2]
[323171525,1713768643379,-3130.60253076,0.00020162,7]
[323171526,1713768643388,-300.0,0.00020449,2]
[323171527,1713768643398,-11174.25606009,0.0002045,2]
[323171589,1713769171977,341.264905,0.00019758,2]
[323171599,1713769220327,154.84515485,0.00019758,2]
[323171600,1713769236411,222.10084985,0.00019758,2]
[323171620,1713769723919,167.43878573,0.00020078,2]
[323171622,1713769804326,10114.69792276,0.00020078,2]
[323171623,1713769818340,10114.69792276,0.00020078,2]
[323171624,1713769827521,709.1913473,0.000189,2]
[323171649,1713769832137,-549.48258406,0.00020172,2]
[323171651,1713769832146,-154.84515485,0.00020173,2]
[323171655,1713769832156,-364.8548493,0.00020174,2]
[323171658,1713769832164,-300.0,0.00020177,2]
[323171660,1713769832173,-738.857562,0.00020178,2]
[323171662,1713769832183,-24900.0,0.00020178,2]
[323171664,1713769832192,-934.19857812,0.00020611,2]
[323171666,1713769832202,-331.03879142,0.00021599,2]
[323171668,1713769832212,-331.0387914,0.00021599,2]
[323171670,1713769832221,-331.0387914,0.000216,2]
[323171672,1713769832230,-331.0387914,0.000216,2]
[323171675,1713769832239,-331.0387914,0.000216,2]
[323171677,1713769832249,-2596.0615486,0.00021696,2]
[323171680,1713769832258,-541.65651213,0.00021697,2]
[323171683,1713769832267,-412.85144093,0.00021698,2]
[323171687,1713769832277,-53043.19287248,0.00021698,2]
[323171689,1713769832286,-2134.23956969,0.00021699,7]
[323171690,1713769832295,-15383.21441161,0.000217,2]
[323171706,1713769836339,10114.69792276,0.00020078,2]
[323171773,1713769838175,-309.62,0.000217,2]
[323171781,1713769840208,-523.42486199,0.000217,2]
[323171801,1713769843161,-13203.71955827,0.000217,2]
[323171802,1713769843216,-186253.98210776,0.000217,2]
[323171803,1713769843226,-419.39507495,0.000217,2]
[323171804,1713769843235,-405.849451,0.000217,2]
[323171805,1713769843244,-1447.46864858,0.00021817,2]
[323171806,1713769843254,-15537.7676109,0.00021916,2]
[323171807,1713769843263,-500.0,0.00021917,2]
[323171808,1713769843272,-500.0,0.00021917,2]
[323171809,1713769843281,-2383.38,0.00021917,2]
[323171810,1713769843291,-500.0,0.00021917,2]
[323171811,1713769843300,-500.0,0.00021917,2]
[323171813,1713769843309,-682.95,0.00021917,2]
[323171814,1713769843321,-500.0,0.00021917,2]
[323171816,1713769843330,-1173.96,0.00021917,2]
[323171817,1713769843340,-500.0,0.00021917,2]
[323171818,1713769843349,-500.0,0.00021917,2]
[323171819,1713769843359,-500.0,0.00021917,2]
[323171820,1713769843369,-281.23577967,0.00021917,2]
[323171821,1713769843379,-500.0,0.00021917,2]
[323171822,1713769843389,-500.0,0.00021917,2]
[323171823,1713769843399,-210.11143249,0.00021917,2]
[323171824,1713769843408,-500.0,0.00021917,2]
[323171825,1713769843417,-500.0,0.00021917,2]
[323171826,1713769843428,-500.0,0.00021917,2]
[323171827,1713769843438,-500.0,0.00021917,2]
[323171828,1713769843448,-500.0,0.00021917,2]
[323171829,1713769843457,-804.93,0.00021917,2]
[323171830,1713769843467,-836.55,0.00021917,2]
[323171832,1713769843478,-1527.27,0.00021917,2]
[323171833,1713769843488,-500.0,0.00021917,2]
[323171834,1713769843499,-500.0,0.00021917,2]
[323171835,1713769843509,-670.38,0.00021917,2]
[323171836,1713769843519,-500.0,0.00021917,2]
[323171837,1713769843528,-587.07678689,0.00021917,2]
[323171838,1713769843538,-500.0,0.00021917,2]
[323171839,1713769843548,-500.0,0.00021917,2]
[323171840,1713769843558,-500.0,0.00021917,2]
[323171841,1713769843568,-500.0,0.00021917,2]
[323171842,1713769843578,-500.0,0.00021917,2]
[323171843,1713769843586,-494.39986204,0.00021917,2]
[323171844,1713769843596,-500.0,0.00021917,2]
[323171845,1713769843606,-500.0,0.00021917,2]
[323171846,1713769843615,-762.37,0.00021917,2]
[323171847,1713769843625,-500.0,0.00021917,2]
[323171848,1713769843636,-500.0,0.00021917,2]
[323171849,1713769843645,-500.0,0.00021917,2]
[323171850,1713769843656,-500.0,0.00021917,2]
[323171851,1713769843666,-432.44540321,0.00021917,2]
[323171853,1713769843676,-688.67,0.00021917,2]
[323171854,1713769843686,-500.0,0.00021917,2]
[323171856,1713769843696,-500.0,0.00021917,2]
[323171859,1713769843706,-500.0,0.00021917,2]
[323171860,1713769843718,-560.16,0.00021917,2]
[323171863,1713769843728,-658.87,0.00021917,2]
[323171865,1713769843739,-1149.25,0.00021917,2]
[323171866,1713769843750,-500.0,0.00021917,2]
[323171868,1713769843761,-500.0,0.00021917,2]
[323171870,1713769843772,-540.51,0.00021917,2]
[323171873,1713769843782,-500.0,0.00021917,2]
[323171874,1713769843792,-820.24,0.00021917,2]
[323171876,1713769843801,-1333.23,0.00021917,2]
[323171879,1713769843810,-500.0,0.00021917,2]
[323171881,1713769843822,-500.0,0.00021917,2]
[323171883,1713769843832,-500.0,0.00021917,2]
[323171884,1713769843842,-500.0,0.00021917,2]
[323171887,1713769843852,-500.0,0.00021917,2]